Cogmind - Beta 16.1 @@@ ROGUE MODE // 2026.02.10 @ 17:03:45 Player: tritri Result: Destroyed by C-40 Crusher with Compactor Performance ------------- Evolutions (3) 1500 Regions Visited (7) 1400 Robots Destroyed (58) 290 Value Destroyed (1140) 1140 Prototype IDs (27) 540 Alien Tech Used (0) 0 Bonus (300) 300 TOTAL SCORE: 5170 Bonus ------- Aligned with FarCom 300 Cogmind --------- Core Integrity 0/700 Matter 5/300 Energy 45/100 System Corruption 8% Temperature Cool (7) Movement Core (50) Location -7/Waste Parts ------- > --- POWER (1) -------- (None) > --- PROPULSION (4) --- (None) > --- UTILITY (4) ------ Improved Component Analysis Suite > --- WEAPON (4) ------- Advanced Datajack > --- INVENTORY (5) ---- Wheel Peak State ------------ > --- POWER ------------ (None) > --- PROPULSION ------- Improved VTOL Module Xenon Bombardment Thruster > --- UTILITY ---------- 0b10 Alert Chip Improved Targeting Computer Reaction Control System > --- WEAPON ----------- Heavy Laser Light Assault Rifle > --- INVENTORY -------- Wheel [Rating: 24] Favorites ----------- Power Ion Engine Engine Ion Engine Power Core Light Nuclear Core Propulsion Aluminum Leg Leg Aluminum Leg Flight Unit Xenon Bombardment Thruster Utility Sensor Array Device Sensor Array Storage Medium Storage Unit Processor 0b10 Alert Chip Weapon Light Assault Rifle Energy Gun Heavy Laser Energy Cannon Beam Cannon Ballistic Gun Light Assault Rifle Launcher Mini Grenade Launcher Special Melee Weapon Advanced Datajack Build | -11 -10 -10 -10 -9 -8 -7 -7 ------- Run | Yrd Mat Min Exi Min Mat Fac Was Slots Evolved 6 | . . . . . 4 2 . Power . | . . . . . . . . Propulsion 2 | . . . . . 1 1 . Utility 2 | . . . . . 2 . . Weapon 2 | . . . . . 1 1 . Parts Attached 33 | 6 7 1 . 2 6 9 2 Power 7 | 1 1 1 . 1 2 1 . Engine 6 | 1 1 1 . 1 2 . . Core 1 | . . . . . . 1 . Reactor . | . . . . . . . . Propulsion 10 | 2 2 . . . 2 4 . Treads . | . . . . . . . . Leg 6 | 2 2 . . . 2 . . Wheel . | . . . . . . . . Hover . | . . . . . . . . Flight 4 | . . . . . . 4 . Utility 8 | 1 2 . . 1 1 2 1 Device 3 | . 1 . . . . 1 1 Storage 2 | 1 1 . . . . . . Processor 3 | . . . . 1 1 1 . Hackware . | . . . . . . . . Protection . | . . . . . . . . Artifact . | . . . . . . . . Weapon 8 | 2 2 . . . 1 2 1 Energy Gun 1 | . . . . . . 1 . Energy Cannon 1 | . 1 . . . . . . Ballistic Gun 3 | 2 . . . . 1 . . Ballistic Cannon . | . . . . . . . . Launcher 2 | . 1 . . . . 1 . Special Weapon . | . . . . . . . . Impact Weapon . | . . . . . . . . Slashing Weapon . | . . . . . . . . Piercing Weapon . | . . . . . . . . Special Melee Weapon 1 | . . . . . . . 1 Unidentified Prototypes 2 | . . . . . . 2 . Parts Lost 28 | . 3 1 . 2 8 13 1 Power 6 | . 1 1 . . 1 3 . Propulsion 10 | . 2 . . . 3 5 . Utility 4 | . . . . 1 1 1 1 Weapon 8 | . . . . 1 3 4 . Highest Loss Streak 5 | . 2 1 . 2 5 4 1 To Critical Strikes 1 | . 1 . . . . . . Average Backups 7 | 1 6 9 9 9 8 2 1 Power 1 | . 1 1 1 1 2 . . Propulsion 2 | . 2 3 3 3 2 1 1 Utility 1 | . . 2 2 2 1 . . Weapon 2 | . 2 3 3 2 2 . . Tool/Special . | . . . . . . . . Unused Backups 3 | . . 1 1 . . . 1 Power . | . . . . . . . . Propulsion 1 | . . . . . . . 1 Utility 1 | . . . 1 . . . . Weapon 1 | . . 1 . . . . . Tool/Special . | . . . . . . . . Average Slot Usage (%) 84 | . 93 99 100 99 69 38 22 Engine 11 | . 13 13 14 14 6 1 . Leg 22 | . 26 28 28 28 18 1 . Flight 2 | . . . . . . 11 . Device 9 | . 9 14 14 13 . . 1 Storage 11 | . 14 14 14 14 9 . . Processor 3 | . . . . . 15 11 15 Energy Cannon 7 | . . 14 14 12 . . . Ballistic Gun 7 | . 26 2 . . 12 1 . Launcher 8 | . 1 11 14 14 8 3 . Peak Build Rating 24 | 6 8 9 9 9 16 24 21 Average Rating 9 | 5 6 8 9 8 12 15 15 On Entrance 7 | . 6 7 9 9 9 9 8 Avg Prop Armor Cover (%) 17 | . . . . . . 17 . Naked Turns . | . . . . . . . . Heaviest Build 20 | 10 20 20 20 20 16 10 2 Greatest Support 30 | 20 20 20 20 20 30 12 3 Greatest Overweight (x) 1 | 1 1 . . . 1 1 . Average Overweight (x) . | . . . . . . . . Largest Inventory Capacity 10 | 8 10 10 10 10 10 5 5 Average Capacity 8 | 7 8 10 10 10 10 5 5 Most Carried 10 | 3 8 10 10 10 10 5 1 Average Carried 7 | 1 6 9 9 9 8 2 1 Final Capacity 10 | 8 10 10 10 10 10 5 5 Final Carried 10 | 3 8 10 10 9 7 1 1 Class Distribution -------------------- 80% | Mutant 17% | Skirmisher Dominant Class ---------------- Mutant | -10/Materials Mutant | -10/Mines Mutant | -10/Exiles Skirmisher | -9/Mines Mutant | -8/Materials Mutant | -7/Factory Mutant | -7/Waste Resources | -11 -10 -10 -10 -9 -8 -7 -7 ----------- Run | Yrd Mat Min Exi Min Mat Fac Was Matter Collected 749 | 250 162 82 . 54 107 94 . Remotely . | . . . . . . . . Salvage Created 1142 | . 330 123 . 33 332 324 . Parts 91 | . 25 16 . 8 26 16 . Haulers Intercepted 2 | . 2 . . . . . . Recyclers Shooed 1 | . . 1 . . . . . Parts Field Recycled . | . . . . . . . . Retrieved Matter . | . . . . . . . . Parts Self-Destructed . | . . . . . . . . Prevented . | . . . . . . . . Parts Restored . | . . . . . . . . Kills | -11 -10 -10 -10 -9 -8 -7 -7 ------- Run | Yrd Mat Min Exi Min Mat Fac Was Combat Hostiles Destroyed 35 | . 8 10 . 4 7 6 . Guns 8 | . 8 . . . . . . Cannons 1 | . . 1 . . . . . AOE 26 | . . 9 . 4 7 6 . Classes Destroyed 9 | . 6 . . . 3 . . Worker 6 | . 2 . . 3 . 1 . Builder 6 | . . . . . 3 3 . Tunneler 1 | . 1 . . . . . . Hauler 2 | . 2 . . . . . . Recycler 4 | . . . . . 2 2 . Operator 2 | . . . . . 1 1 . Watcher 2 | . 1 . . . 1 . . Swarmer 19 | . 5 6 . 4 4 . . Grunt 16 | . 3 4 . . 3 6 . Best Kill Streak 10 | . 3 5 . 7 8 10 . Combat Bots Only 6 | . 3 5 . 4 6 6 . Max Kills in Single Turn 3 | . 1 2 . 3 3 3 . Gunslinging . | . . . . . . . . Exploded 3 | . . 2 . 1 3 2 . Melee . | . . . . . . . . Uniques/NPCs Destroyed . | . . . . . . . . Combat | -11 -10 -10 -10 -9 -8 -7 -7 -------- Run | Yrd Mat Min Exi Min Mat Fac Was Hostile Shots Fired 237 | . 52 14 . 17 65 88 1 Missed 97 | . 18 2 . 8 23 46 . Hits 140 | . 34 12 . 9 42 42 1 Melee 5 | . . . . . 4 . 1 Projectile 135 | . 34 12 . 9 38 42 . Critical Strikes 5 | . 1 1 . . 2 1 . Damage Taken 2689 | . 401 209 . 141 752 1153 33 Core 1098 | . 66 15 . 48 252 684 33 Absorbed by Shields . | . . . . . . . . Core Remaining (%) 67 | 100 . . . 48 54 . . Volleys Fired 111 | . 48 10 . 6 14 33 . Largest 3 | . 2 2 . 2 3 2 . Hottest 90 | . 50 90 . 90 70 89 . Shots Fired 194 | . 96 20 . 7 33 38 . Gun 138 | . 93 . . . 20 25 . Cannon 11 | . . 10 . 1 . . . Launcher 45 | . 3 10 . 6 13 13 . Special . | . . . . . . . . Kinetic 131 | . 93 . . . 20 18 . Thermal 18 | . . 10 . 1 . 7 . Explosive 45 | . 3 10 . 6 13 13 . Electromagnetic . | . . . . . . . . Robot Hit Streak 6 | . 5 4 . 1 5 6 . Robot Miss Streak 6 | . 6 2 . 3 3 2 . Penetration Max . | . . . . . . . . Secondary Targets 2 | . 2 . . . . . . Max Gunslinging Chain 1 | . 1 . . . . . . Shots Hit Robots 97 | . 46 5 . 2 18 24 2 Core Hits 108 | . 25 16 . 8 29 30 . Critical Kills . | . . . . . . . . Critical Parts Destroyed 1 | . 1 . . . . . . Critical Strikes 1 | . 1 . . . . . . Destroy 1 | . 1 . . . . . . Melee Attacks 2 | . . . . . . . 2 Impact . | . . . . . . . . Slashing . | . . . . . . . . Piercing . | . . . . . . . . Sneak Attacks . | . . . . . . . . Combat Hostiles . | . . . . . . . . Follow-up Attacks . | . . . . . . . . Damage Inflicted 3836 | . 530 625 . 361 1122 1198 . Guns 676 | . 388 . . . 90 198 . Cannons 34 | . . 34 . . . . . Explosions 3094 | . 123 591 . 350 1032 998 . Melee . | . . . . . . . . Ramming 32 | . 19 . . 11 . 2 . Kinetic 563 | . 388 . . . 90 85 . Thermal 147 | . . 34 . . . 113 . Explosive 3094 | . 123 591 . 350 1032 998 . Electromagnetic . | . . . . . . . . Impact . | . . . . . . . . Slashing . | . . . . . . . . Piercing . | . . . . . . . . Highest Corruption 8 | . . . . . . . 8 Average Corruption 8 | . . . . . . . 8 Corruption Purged . | . . . . . . . . Corruption Blocked . | . . . . . . . . Overload Shots . | . . . . . . . . Overflow Damage 148 | . . 58 . 7 74 9 . Projectiles . | . . . . . . . . Explosions 148 | . . 58 . 7 74 9 . Melee . | . . . . . . . . Knockbacks 1 | . . . . 1 . . . Impact 1 | . . . . 1 . . . Kinetic . | . . . . . . . . Secondary . | . . . . . . . . Self-Inflicted Damage 437 | . 81 72 . 64 45 175 . Shots 12 | . 2 3 . 2 3 2 . Rammed 1 | . . . . . . 1 . Targets Rammed 9 | . 6 . . 2 . 1 . Kicked 8 | . 6 . . 2 . . . Crushed . | . . . . . . . . Highest Temperature 99 | . 20 99 . 30 60 56 . Average Temperature 27 | . 8 37 . 18 22 27 . Received Heat Transfer 720 | . 75 69 . . 342 234 . Siege Activations . | . . . . . . . . Martial Activations . | . . . . . . . . Shielding Activations . | . . . . . . . . Robots Disrupted . | . . . . . . . . Combat Hostiles . | . . . . . . . . Robots Corrupted . | . . . . . . . . Combat Hostiles . | . . . . . . . . Parts Fried . | . . . . . . . . Impact Corruptions . | . . . . . . . . Robots Melted . | . . . . . . . . Combat Hostiles . | . . . . . . . . Parts Melted . | . . . . . . . . Heat Transferred 296 | . . 74 . . . 222 . Parts Sabotaged . | . . . . . . . . Parts Stolen . | . . . . . . . . Parts Stripped . | . . . . . . . . Power Chain Reactions . | . . . . . . . . Alert | -11 -10 -10 -10 -9 -8 -7 -7 ------- Run | Yrd Mat Min Exi Min Mat Fac Was Maximum Alert Level 1 | . . . . . 1 1 . Low Security (%) 88 | 100 100 100 . 100 46 67 100 Level 1 11 | . . . . . 53 32 . Level 2 . | . . . . . . . . Level 3 . | . . . . . . . . Level 4 . | . . . . . . . . Level 5 . | . . . . . . . . High Security . | . . . . . . . . Max Security . | . . . . . . . . Peak Influence 269 | . 141 177 . 110 269 242 41 Initial 88 | . . 46 . . 39 88 41 Average 82 | . 68 85 . 6 171 157 36 Influence Increases 1608 | . 403 311 . 138 326 430 . Destroy 0b10 Robot/C 648 | . 160 200 . 80 112 96 . Destroy 0b10 Robot/NC 104 | . 30 . . 15 31 28 . Destroy Leader 120 | . 36 40 . 10 18 16 . Successful Hack 34 | . 12 . . . . 22 . Disable Machine 114 | . 30 . . . 48 36 . Destroy Structure 252 | . 15 71 . 33 81 52 . Partial Spotted 12 | . . . . . . 12 . Lose Combat Pursuer 324 | . 120 . . . 36 168 . Influence Decreases 1587 | . 284 281 149 36 233 507 97 Entered New Map 469 | . . 73 149 . 63 107 77 Time Decay 838 | . 254 198 . 16 90 270 10 Lost Part 280 | . 30 10 . 20 80 130 10 Squads Dispatched 9 | . . . . . 1 8 . Investigation 4 | . . . . . . 4 . Extermination 1 | . . . . . . 1 . Reinforcement 4 | . . . . . 1 3 . Assault . | . . . . . . . . Garrison . | . . . . . . . . Intercept . | . . . . . . . . Searches Triggered . | . . . . . . . . Construction Impeded 3 | . . . . . 1 2 . Haulers Reinforced . | . . . . . . . . Active Scanning Responses . | . . . . . . . . Cargo Convoy Interrupts . | . . . . . . . . Stealth | -11 -10 -10 -10 -9 -8 -7 -7 --------- Run | Yrd Mat Min Exi Min Mat Fac Was Distress Signals 5 | . 3 . . . 1 1 . Communications Jammed . | . . . . . . . . Distress Signals . | . . . . . . . . Times Spotted 95 | . 21 7 . 4 22 37 4 Peak Tracking Total 9 | . 6 3 . 4 9 7 5 Tactical Retreats 14 | . 7 . . . 1 6 . Traps | -11 -10 -10 -10 -9 -8 -7 -7 ------- Run | Yrd Mat Min Exi Min Mat Fac Was Traps Triggered 2 | . . . . . . 2 . Indirectly . | . . . . . . . . Trap Hack Attempts . | . . . . . . . . Triggered . | . . . . . . . . Disarmed . | . . . . . . . . Reprogrammed . | . . . . . . . . Reused . | . . . . . . . . Traps Extracted . | . . . . . . . . Installed . | . . . . . . . . Triggered . | . . . . . . . . Machines | -11 -10 -10 -10 -9 -8 -7 -7 ---------- Run | Yrd Mat Min Exi Min Mat Fac Was Machines Disabled 9 | . 2 . . . 4 3 . Max in Single Turn 3 | . 1 . . . 2 3 . Machines Repaired . | . . . . . . . . Machines Dismantled . | . . . . . . . . Machines Sabotaged . | . . . . . . . . Overloaded Fab Kills . | . . . . . . . . Hacking | -11 -10 -10 -10 -9 -8 -7 -7 --------- Run | Yrd Mat Min Exi Min Mat Fac Was Machines Accessed 12 | . 1 . 5 1 . 5 . Terminals 4 | . 1 . . 1 . 2 . Fabricators 2 | . . . . . . 2 . Repair Stations . | . . . . . . . . Recycling Units . | . . . . . . . . Scanalyzers 1 | . . . . . . 1 . Garrison Access . | . . . . . . . . Total Hacks 67 | . 3 . 50 1 . 13 . Successful 59 | . 3 . 50 1 . 5 . Failed 8 | . . . . . . 8 . Catastrophic 3 | . . . . . . 3 . Database Lockouts . | . . . . . . . . Manual 3 | . . . 1 . . 2 . Terminals 7 | . 3 . . 1 . 3 . Fabricators 6 | . . . . . . 6 . Repair Stations . | . . . . . . . . Recycling Units . | . . . . . . . . Scanalyzers 4 | . . . . . . 4 . Garrison Access . | . . . . . . . . Terminal Hacks 55 | . 3 . 50 1 . 1 . Record 51 | . 1 . 49 . . 1 . Prototype ID Bank 1 | . 1 . . . . . . Branch Access Points 1 | . 1 . . . . . . Dispatch Records 1 | . . . . 1 . . . Proto ID Catalog 1 | . . . 1 . . . . Fabricator Hacks 2 | . . . . . . 2 . Load Schematic 1 | . . . . . . 1 . Build 1 | . . . . . . 1 . Repair Station Hacks . | . . . . . . . . Recycling Unit Hacks . | . . . . . . . . Scanalyzer 2 | . . . . . . 2 . Insert Component 1 | . . . . . . 1 . Analyze 1 | . . . . . . 1 . Garrison Access Hacks . | . . . . . . . . Unauthorized Hacks . | . . . . . . . . Terminals . | . . . . . . . . Fabricators . | . . . . . . . . Repair Stations . | . . . . . . . . Recycling Units . | . . . . . . . . Scanalyzers . | . . . . . . . . Garrison Access . | . . . . . . . . Data Cores Recovered 1 | . . . . . 1 . . Used . | . . . . . . . . Hacking Detections 4 | . . . . . . 4 . Full Trace Events 4 | . . . . . . 4 . Feedback Events . | . . . . . . . . Feedback Blocked . | . . . . . . . . Robot Schematics Acquired . | . . . . . . . . Robots Built . | . . . . . . . . Authchips . | . . . . . . . . Time . | . . . . . . . . Total Robot Build Rating . | . . . . . . . . Part Schematics Acquired 1 | . . . . . . 1 . Parts Built 2 | . . . . . . 2 . Authchips . | . . . . . . . . Time 42 | . . . . . . 42 . Total Part Build Rating 8 | . . . . . . 8 . Part Studies Acquired . | . . . . . . . . Parts Repaired . | . . . . . . . . Time . | . . . . . . . . Parts Recycled . | . . . . . . . . Recycled Matter . | . . . . . . . . Retrieved Matter . | . . . . . . . . Retrieved Components . | . . . . . . . . Parts Scanalyzed 1 | . . . . . . 1 . Part Schematics Acquired 1 | . . . . . . 1 . Parts Damaged . | . . . . . . . . Bothacking | -11 -10 -10 -10 -9 -8 -7 -7 ------------ Run | Yrd Mat Min Exi Min Mat Fac Was Used RIF Installer . | . . . . . . . . Robots Hacked 1 | . . . . . . . 1 Non-combat . | . . . . . . . . Combat 1 | . . . . . . . 1 Robot Hacks Applied 2 | . . . . . . . 2 parse_system 2 | . . . . . . . 2 Relay Couplers Released . | . . . . . . . . Fabnet Peak Effective % . | . . . . . . . . Robots Rewired . | . . . . . . . . Allies Hacked . | . . . . . . . . Hacks Repelled . | . . . . . . . . Allies | -11 -10 -10 -10 -9 -8 -7 -7 -------- Run | Yrd Mat Min Exi Min Mat Fac Was Total Allies . | . . . . . . . . Largest Group . | . . . . . . . . Highest-Rated Group . | . . . . . . . . Highest-Rated Ally . | . . . . . . . . Total Orders . | . . . . . . . . Ally Attacks . | . . . . . . . . Total Damage . | . . . . . . . . Kills . | . . . . . . . . Allies Corrupted . | . . . . . . . . Allies Melted . | . . . . . . . . Intel | -11 -10 -10 -10 -9 -8 -7 -7 ------- Run | Yrd Mat Min Exi Min Mat Fac Was Active Infowar (turns) 2139 | . 506 404 678 551 . . . Sensors 2139 | . 506 404 678 551 . . . Robot Analysis Total . | . . . . . . . . Derelict Logs Recovered 2 | . . 1 . 1 . . . Drone Launches . | . . . . . . . . Drone Recoveries . | . . . . . . . . Exploration | -11 -10 -10 -10 -9 -8 -7 -7 ------------- Run | Yrd Mat Min Exi Min Mat Fac Was Turns Passed 3294 | 69 750 404 678 579 198 582 34 Spaces Moved 3156 | 49 496 307 564 467 118 1095 60 Core 64 | 3 . . . . . 1 60 Treads . | . . . . . . . . Legs 1998 | 46 496 307 564 467 118 . . Wheels . | . . . . . . . . Hover . | . . . . . . . . Flight 1094 | . . . . . . 1094 . Fastest Speed 34 | 50 120 120 120 120 120 34 50 Average Speed 91 | 117 120 120 120 120 130 41 50 Slowest Speed 190 | 120 190 120 120 120 190 130 50 Overloaded Moves . | . . . . . . . . Propulsion Burnouts . | . . . . . . . . Robots Hopped 4 | . . . . . . 4 . Potential Cave-ins . | . . . . . . . . Cave-ins Triggered . | . . . . . . . . Exploration Rate (%) 53 | 4 59 72 91 80 23 29 70 Regions Visited 7 Branch Regions 3 Pre-discovered Areas 1 | . . . 1 . . . . Known Exits Taken 1 | . 1 . . . . . . Unknown Exits Taken 5 | 1 . 1 1 1 1 . . Scrap Searched 3 | . . 1 . 2 . . . Spaces Dug 24 | . 6 13 . . . 5 . Terrain Destroyed 314 | . 16 91 . 61 88 58 . Melee . | . . . . . . . . Projectile . | . . . . . . . . AOE 314 | . 16 91 . 61 88 58 . Terrain Rammed . | . . . . . . . . Walls Destroyed . | . . . . . . . . Machines Disabled . | . . . . . . . . Actions | -11 -10 -10 -10 -9 -8 -7 -7 --------- Run | Yrd Mat Min Exi Min Mat Fac Was Total 3370 | 57 565 322 565 477 137 1183 64 Wait 44 | . 3 . . . . 41 . Move 3142 | 48 495 306 563 466 117 1087 60 Hop 4 | . . . . . . 4 . Pick Up 15 | 3 6 3 1 . . 2 . Fast Attach 19 | 6 2 1 . . 2 6 2 Attach 14 | . 2 . . 2 3 7 . Detach 1 | . . . . . . 1 . Swap 6 | . 3 1 . 1 1 . . Drop 3 | . . 1 1 . . 1 . Fire 111 | . 48 10 . 6 14 33 . Melee 2 | . . . . . . . 2 Ram 1 | . . . . . . 1 . Kick 8 | . 6 . . 2 . . . Crush . | . . . . . . . . Escape Stasis . | . . . . . . . . Rewire . | . . . . . . . . Trap . | . . . . . . . . Miscellaneous . | . . . . . . . . Route ------- -11/Scrapyard -10/Materials (discovered 4 exits: [*Mat x2] / *Min x2) -10/Mines (discovered 3 exits: [*Mat x2] / *Exi) -10/Exiles -9/Mines -8/Materials -7/Factory -7/Waste (discovered 1 exit: [*Fac]) History --------- Turn | Location | Event 21 | -11/Scrapyard | Discovered new exit (range 14) 70 | -11/Scrapyard | Entered Materials 335 | -10/Materials | Build established: Mutant 344 | -10/Materials | Discovered new exit (range 16) 477 | -10/Materials | Discovered new exit (range 15) 664 | -10/Materials | Identified exit to Mines 698 | -10/Materials | Discovered new exit (range 15) 820 | -10/Materials | Entered Mines 865 | -10/Mines | Discovered new exit (range 9) 868 | -10/Mines | Found a damaged Exp. Sensor Array with a note attached 871 | -10/Mines | Found Prototype Device 894 | -10/Mines | Met a Derelict bent on vengeance 895 | -10/Mines | Discovered new exit (range 15) 988 | -10/Mines | Received a Rocket Launcher from a helpful Derelict 1046 | -10/Mines | Learned Materials interactive machine intel 1218 | -10/Mines | Deemed a non-threat by the Exiles lab entrance 1219 | -10/Mines | Discovered new exit (range 5) 1224 | -10/Mines | Entered Exiles 1253 | -10/Exiles | Met 8R-AWN 1271 | -10/Exiles | Met EX-HEX 1343 | -10/Exiles | Met EX-DEC 1366 | -10/Exiles | Visited The Gauntlet 1547 | -10/Exiles | Learned location of Zion (-7) 1589 | -10/Exiles | Discovered new exit (range 10) 1661 | -10/Exiles | Met EX-BIN 1685 | -10/Exiles | Aligned with FarCom system 1686 | -10/Exiles | Given EX-Vault access code 1758 | -10/Exiles | Opened EX-Vault 1782 | -10/Exiles | Found 0b10 Alert Chip 1806 | -10/Exiles | Warned to stay clear of 0b10 Research branches 1902 | -10/Exiles | Left Exiles lab with 0b10 Alert Chip 1902 | -10/Exiles | Entered Mines 2196 | -9/Mines | Build established: Skirmisher 2247 | -9/Mines | Learned location of 1 exit from Proximity Caves 2436 | -9/Mines | Discovered new exit (range 12) 2452 | -9/Mines | Core integrity fell below 50% 2481 | -9/Mines | Entered Materials 2481 | -8/Materials | Evolved 4 slots: Propulsion x1, Utility x2, Weapon x1 2482 | -8/Materials | Loaded intel: 19 interactive machine locations 2641 | -8/Materials | Lost 3 parts (1p2n) 2662 | -8/Materials | Discovered new exit (range 10) 2679 | -8/Materials | Entered Factory 2679 | -7/Factory | Evolved 2 slots: Propulsion x1, Weapon x1 2699 | -7/Factory | Lost 5 parts (1n1u3w) 2956 | -7/Factory | Build established: Mutant 2985 | -7/Factory | Fabricated Xenon Bombardment Thruster (x2) 3078 | -7/Factory | Lost 3 parts (1p1n1w) 3201 | -7/Factory | Core integrity fell below 50% 3201 | -7/Factory | Core integrity fell below 20% 3231 | -7/Factory | Lost 4 parts (1n1u2w) 3261 | -7/Factory | Sucked down chute 3261 | -7/Factory | Entered Waste 3267 | -7/Waste | Spotted C-40 Crusher 3276 | -7/Waste | EMP discharged 3279 | -7/Waste | Spotted C-40 Crusher 3287 | -7/Waste | Spotted C-40 Crusher 3287 | -7/Waste | Spotted C-40 Crusher 3289 | -7/Waste | Spotted C-40 Crusher 3292 | -7/Waste | Discovered new exit (range 16) 3293 | -7/Waste | Spotted C-40 Crusher 3295 | -7/Waste | Crushed by Compactor (1 part destroyed, 1 dropped) 3295 | -7/Waste | Destroyed by C-40 Crusher with Compactor Last Messages --------------- air into the floor. LOCATION=UNKNOWN GOAL=ESCAPE 03261_ Receiving FarCom transmissions... 03266_ ALERT: Foreign system detected. Charging EMP. 03269_ Acquired Adv. Datajack. 03276_ Broken Imp. Powered Armor fried beyond repair. 03276_ System corrupted (+8). 03281_ Acquired Imp. Component Analysis Suite. 03292_ EXIT=FOUND 03294_ Jacked C-40 Crusher... >>parse_system Reading system data... 03295_ Jacked C-40 Crusher... >>parse_system Reading system data... 03295_ 0b10 Alert Chip crushed. 03295_ Imp. Targeting Computer crushed. Map ----- +----------------------------------------------------+ | ???????????????????????????????????????????????? | | #??????????????????????????????????????????????? | | #??????????????????????????????????????????????? | | #??????????????????????????????????????????????? | | #??????????????????????????????????????????????? | | #??????????????????????????????????????????????? | | #??????? ???????????????????????????????????? | | #??????# ??????? ????????????????????????? | | #??????# #??????? #??????????????????????? | | #??????# #??????? #??????????????????????? | | #??????# #??????# #??????????????????????? | | #??????# #??????# #??????????????????????? | | #??????# #??????# ###????????????????????? | | #??????# #??????# #????????????????????? | | #??????# #??????#CC #????????????????????? | | #??????# #??????#CC ?????????????????????? | | #??????# #??????# ??????????????????????? | | #??????# #??????# #??????????????????????? | | #??????#! #??????# #??????######??????????? | | #??????# #??????# #????? ??????????? | | #??????# #??????# #???? ??????????? | | ######## ######## #### * ?????????? | | CC / ?????????? | | CC CC #????????? | | CC < #????????? | | @ #????????? | | ######## ######## #### #????????? | | #??????# #??????# #????? ??????????? | | #??????# #??????# #??????? ??????????? | | #??????# #??????# #??????????????????????? | | #??????# #??????# #??????????????????????? | | ###??????######??????######??????????????????????? | | ?????????????????????????????????????????????????? | | ?????????????????????????????????????????????????? | | ?????????????????????????????????????????????????? | | ?????????????????????????????????????????????????? | | ?????????????????????????????????????????????????? | | ?????????????????????????????????????????????????? | | ?????????????????????????????????????????????????? | | ?????????????????????????????????????????????????? | | ?????????????????????????????????????????????????? | | ?????????????????????????????????????????????????? | | ?????????????????????????????????????????????????? | | ?????????????????????????????????????????????????? | | ?????????????????????????????????????????????????? | | ?????????????????????????????????????????????????? | | ?????????????????????????????????????????????????? | | ?????????????????????????????????????????????????? | | ?????????????????????????????????????????????????? | | ?????????????????????????????????????????????????? | +----------------------------------------------------+ Best States ------------- Heat Dissipation 34 Energy Generation 14 Energy Capacity 250 Matter Stores 300 Matter Capacity 300 Sight Range 16 Robot Scan Range 14 Terrain Scan Density 10 Evasion (%) 71 Targeting Accuracy 6 Item Schematics ----------------- Xenon Bombardment Thruster | -7/Factory | Scanalyzed Robot Schematics ------------------ None Fabricated ------------ Xenon Bombardment Thruster | x2 | -7/Factory Repaired ---------- Nothing Studied --------- None Alien Tech Used ----------------- None Achievements -------------- Construction Begets Destruction Challenges ------------ None Game ------ Seed FrostLinkedChargecaster Manual? 0 Play Time 00:33:53 Cumulative 3.7 hours Start 2026.02.10 @ 16:30:18 End 2026.02.10 @ 17:03:45 Sessions 1 Manual Loads 0 Difficulty Rogue Special Mode None Game No. 9 Rogue 9 Adventurer 0 Explorer 0 Win Type - Total 0 Types 0/0/0/0/0/0/0/0/0/0 Lore% 6 Gallery% 6 Achievement% 15 Wizard Run 0 Options --------- Layout 1 ASCII 0 Keyboard 1 Movement Vi Keybinds 0 Fullscreen 1 Font 24/Smallcaps Map View 50x40 Zoom Use 0% Tactical HUD 1 Map Filters NONE Filters NONE Steam 1 RUN: b9b1aa7a-274a-4b2d-9e97-fb4866c95dc2